[Event "1000GM Schev-G1 March 2024"]
[Site "Santa Clara"]
[Date "2024.03.11"]
[Round "5.3"]
[White "Heimann, Mark"]
[Black "Atwell, Rose"]
[Result "1-0"]
[ECO "D12"]
[WhiteElo "2435"]
[BlackElo "2285"]
[Annotator "TA"]
[PlyCount "137"]
[EventDate "2024.03.06"]
[EventType "schev"]
[EventCountry "USA"]
[SourceTitle "playchess.com"]
[Source "ChessBase"]
[SourceQuality "1"]
[TimeControl "5400+30"]

{[%evp 15,137,23,12,24,31,24,22,22,49,42,103,91,108,97,83,76,85,86,82,87,85,96,75,95,87,87,93,99,141,104,102,92,189,172,175,162,222,226,242,241,242,210,252,237,241,240,268,257,251,245,439,411,427,433,420,425,516,506,539,526,521,399,384,392,394,385,377,359,375,325,311,331,346,350,366,361,385,356,404,366,353,324,319,316,389,392,479,414,595,454,810,803,758,633,724,724,724,744,695,677,654,646,1248,1248,970,805,964,597,12596,7238,12791,6643,4952,1038,29983,29984,29984,29985,29985,29986,29986,29987,29988,29989]} 1. Nf3 {[%emt 0:00:40]} d5 {[%emt 0:00:06]} 2. c4 {[%emt 0:00:09]} c6 {[%emt 0:00:08]} 3. e3 {[%emt 0:00:13]} Nf6 {[%emt 0:00:08]} 4. d4 {[%emt 0:00:19]} Bf5 {[%emt 0:00:33]} 5. Nc3 {[%emt 0:00:07]} e6 {[%emt 0:00:05]} 6. Nh4 {[%emt 0:00:06]} Bg6 {[%emt 0:00:16]} 7. Nxg6 {[%emt 0:01:47]} hxg6 {[%emt 0:00:03]} 8. Qb3 {[%emt 0:00:28]} Qb6 {[%emt 0:05:41]} 9. Bd2 {[%emt 0:01:04]} Nbd7 {[%emt 0:00:59]} 10. Be2 {[%emt 0:02:56]} Qc7 {[%emt 0:05:17]} 11. g3 {[%emt 0:03:43] Die Stellung ist ausgeglichen.} a5 {[%emt 0:05:13]} 12. Rc1 {[%emt 0:02:51]} Bb4 {[%emt 0:03:04]} (12... Qb8 $14) 13. cxd5 $16 {[%emt 0:04:41]} Bxc3 {[%emt 0:01:07]} 14. bxc3 {[%emt 0:03:32]} (14. Rxc3 $6 exd5 15. Rc2 a4 $11) (14. Qxc3 $6 Ne4 15. Qb3 a4 $14) (14. Bxc3 $6 exd5 15. Kf1 O-O $11) 14... exd5 {[%emt 0:03:30]} 15. c4 {[%emt 0:00:47]} dxc4 {[%emt 0:05:03]} 16. Bxc4 {[%emt 0:01:03]} O-O {[%emt 0:01:30]} 17. Qb1 {[%emt 0:02:13] Verhindert Ne4. Weiß steht aktiver.} Qd6 {[%emt 0:06:21]} 18. O-O {[%emt 0:05:53]} (18. Qxg6 $2 b5 19. Bxf7+ (19. Bb3 $2 a4 $19) 19... Rxf7 $19) (18. Qxb7 $2 Rfb8 19. Bxf7+ Kxf7 20. Qxc6 Qxc6 21. Rxc6 Rb2 $19) 18... b5 {[%emt 0:05:23]} 19. Be2 {[%emt 0:02:45]} Nb6 {[%emt 0:03:18]} 20. e4 {[%emt 0:03:31]} Qe6 {[%emt 0:01:53]} ({Ein No Go ist} 20... Qxd4 21. Be3 (21. Rxc6 $2 {verliert.} Qxd2 22. Bxb5 Nbd7 $19) 21... Qd8 22. Rfd1 $16 (22. Rxc6 Nc4 $16)) 21. f3 {[%emt 0:01:51]} Rfd8 {[%emt 0:02:16]} 22. Be3 {[%emt 0:03:10]} b4 {[%emt 0:02:24]} 23. Qb3 {[%emt 0:06:37] Es drohte Na4} Qe8 {[%emt 0:10:38]} (23... Nfd5 $16 {war nötig.}) 24. Rc5 $18 {[%emt 0:03:01]} Rd6 {[%emt 0:03:17]} 25. Rfc1 {[%emt 0:00:37]} Nfd5 {[%emt 0:03:51]} (25... Nbd5 {war einen Versuch wert.}) 26. Bf2 {[%emt 0:06:28]} ({Bloß nicht} 26. exd5 $6 Nxd5 27. Kf2 Re6) 26... Ne7 {[%emt 0:00:36]} 27. a3 {[%emt 0:04:15]} Nd7 {[%emt 0:01:41]} 28. R5c2 {[%emt 0:01:49][%cal Bc5c2,Bc2a2,Ba2b2][%mdl 32]} Rb8 {[%emt 0:04:27]} 29. axb4 {[%emt 0:00:27]} Rxb4 {[%emt 0:01:00]} 30. Qa3 {[%emt 0:00:13]} Qa8 {[%emt 0:02:25]} 31. Ra2 {[%emt 0:00:51]} Qb8 {[%emt 0:01:39]} 32. Qxa5 {[%emt 0:00:26]} Rb1 $2 {[%emt 0:01:32]} (32... Nf8 33. Rc4 Rb7) 33. Rxb1 {[%emt 0:02:31]} Qxb1+ {[%emt 0:00:43]} 34. Kg2 {[%emt 0:00:05]} Nf8 {[%emt 0:01:00]} 35. Qa3 {[%emt 0:02:09][%cal Oa2b2] [#] Rb2! wäre nun fies.} Rd7 {[%emt 0:01:28]} 36. Rb2 {[%emt 0:05:00]} Qc1 {[%emt 0:00:07]} 37. Be3 {[%emt 0:05:37]} Qe1 {[%emt 0:00:21]} 38. Qa8 {[%emt 0:02:02] Schwarz muss nun Bf2 beachten.} g5 {[%emt 0:03:20]} 39. Bxg5 {[%emt 0:04:19][%cal Oa8f8] [#] Weiss will mit Qxf8+! Matt setzen.} Neg6 {[%emt 0:00:23]} 40. Qxc6 {[%emt 0:01:36]} Rxd4 {[%emt 0:00:22]} 41. Be3 {[%emt 0:00:29]} Rd8 {[%emt 0:03:32]} 42. Qc1 {[%emt 0:00:50]} Qxc1 {[%emt 0:01:40]} 43. Bxc1 {[%emt 0:00:02]} Rc8 {[%emt 0:00:09]} 44. Be3 {[%emt 0:00:17]} Ne6 {[%emt 0:00:49]} 45. f4 {[%emt 0:00:19] Wehrt Ne5 ab. Droht f5 und aus.} Nd8 {[%emt 0:00:16]} 46. Bg4 {[%emt 0:02:09]} Ra8 {[%emt 0:00:18]} 47. Rb6 {[%emt 0:01:07]} Nf8 {[%emt 0:00:46]} 48. Bc5 {[%emt 0:00:53]} Nde6 {[%emt 0:00:36]} 49. Bd6 {[%emt 0:01:55]} Kh7 {[%emt 0:00:32]} 50. h4 {[%emt 0:00:39]} Rd8 {[%emt 0:00:52]} 51. e5 {[%emt 0:00:33]} Nd4 {[%emt 0:00:18]} (51... Kg8 {war angesagt.} 52. h5 Nd4) 52. Kf2 {[%emt 0:02:11] Droht stark Ke3.} Re8 {[%emt 0:02:23]} (52... Nd7 $142 53. Ra6 Nf8 54. Bxf8 Rxf8) 53. Ke3 {[%emt 0:01:01]} Nde6 {[%emt 0:00:08]} 54. f5 {[%emt 0:00:51]} Nd8 {[%emt 0:00:10]} 55. Bxf8 {[%emt 0:00:23]} Rxf8 {[%emt 0:00:05][%mdl 4096] Endspiel. KRB-KRN} 56. Rb8 {[%emt 0:00:23]} Re8 {[%emt 0:00:37]} 57. Kd2 {[%emt 0:03:14]} Rf8 {[%emt 0:03:20]} 58. Bf3 {[%emt 0:00:39]} f6 {[%emt 0:00:40]} 59. exf6 {[%emt 0:00:08]} gxf6 {[%emt 0:00:09]} 60. g4 {[%emt 0:00:59]} Kh6 {[%emt 0:00:28]} 61. Kc3 {[%emt 0:01:44] Und Ra8 würde nun gewinnen.} Re8 {[%emt 0:00:54]} 62. Bd5 {[%emt 0:00:44] Beabsichtigt Ra8 und Matt.} Rf8 {[%emt 0:01:15]} 63. Kc4 {[%emt 0:00:14]} Re8 {[%emt 0:00:45]} 64. Ra8 {[%emt 0:00:30] Ra6 ist eine echte Drohung.} Nf7 {[%emt 0:00:44]} 65. Rxe8 {[%emt 0:00:10] Weiß setzt Matt.} Nd6+ {[%emt 0:00:01]} 66. Kc5 {[%emt 0:00:05]} Nxe8 {[%emt 0:00:07]} 67. Bc6 {[%emt 0:00:25]} Ng7 {[%emt 0:00:29]} 68. Kd6 {[%emt 0:00:06]} Kh7 {[%emt 0:00:37]} 69. Ke7 {[%emt 0:00:04] Gewichteter Fehlerwert: Weiß=0.13 (sehr präzise) /Schwarz=0.24 (präzise) .  Fehler:       	---       	Schwarz=6     Ungenau:       	---       	Schwarz=3     OK:         	Weiß=28    	Schwarz=18    Bester:       	Weiß=1     	Schwarz=2} 1-0

[Event "1000GM Schev-G1 March 2024"]
[Site "Santa Clara"]
[Date "2024.03.11"]
[Round "5.4"]
[White "Guo, Ethan"]
[Black "Stearman, Josiah"]
[Result "1/2-1/2"]
[ECO "B90"]
[WhiteElo "2227"]
[BlackElo "2464"]
[Annotator "TA"]
[PlyCount "46"]
[EventDate "2024.03.06"]
[EventType "schev"]
[EventCountry "USA"]
[SourceTitle "playchess.com"]
[Source "ChessBase"]
[SourceQuality "1"]
[TimeControl "5400+30"]

{[%evp 12,46,10,14,32,28,38,22,33,33,54,32,39,32,22,29,30,37,36,23,39,30,37,0,131,156,163,114,181,170,152,141,160,153,163,106,118]} 1. e4 {[%emt 0:00:01]} c5 {[%emt 0:03:02]} 2. Nf3 {[%emt 0:00:03]} d6 {[%emt 0:00:22]} 3. d4 {[%emt 0:00:01]} cxd4 {[%emt 0:00:12]} 4. Nxd4 {[%emt 0:00:01]} Nf6 {[%emt 0:00:08]} 5. Nc3 {[%emt 0:00:05]} a6 {[%emt 0:00:20]} 6. h3 {[%emt 0:00:05]} e5 {[%emt 0:00:05]} 7. Nde2 {[%emt 0:00:06]} h5 {[%emt 0:00:05]} 8. Bg5 {[%emt 0:00:05]} Be7 {[%emt 0:02:46]} 9. Ng3 {[%emt 0:00:17]} g6 {[%emt 0:01:09] Die Stellung ist ausgeglichen.} 10. Bc4 {[%emt 0:00:07]} O-O {[%emt 0:06:43]} 11. O-O {[%emt 0:00:40]} b5 {[%emt 0:01:15]} 12. Bd5 {[%emt 0:03:23]} Nxd5 {[%emt 0:02:02]} 13. Qxd5 {[%emt 0:00:20]} Ra7 {[%emt 0:00:57]} 14. Bxe7 {[%emt 0:00:41]} (14. Bh6 {hält die Spannung aufrecht.} Re8 15. Qd3 Be6 16. Nxh5 Kh7 17. Be3) 14... Qxe7 {[%emt 0:02:45]} 15. Rfd1 {[%emt 0:00:30]} Rd8 {[%emt 0:00:22]} 16. Qd2 $36 {[%emt 0:03:07][%mdl 2048] [#] Und jetzt Nd5 wäre schön. Weiss steht aktiver.} Be6 {[%emt 0:02:53]} 17. Nf1 {[%emt 0:02:36]} f5 {[%emt 0:04:13]} (17... Nc6 $11) 18. exf5 $16 {[%emt 0:01:11]} Bxf5 {[%emt 0:05:44]} 19. Nd5 {[%emt 0:01:05]} (19. a4 $18 b4 20. Nd5) 19... Qf8 {[%emt 0:02:47]} (19... Qf7 $16 20. Ng3 Be6) 20. c3 {[%emt 0:04:18]} Nc6 {[%emt 0:03:07]} 21. Qg5 {[%emt 0:02:25] Zielt auf g4 ab.} Rf7 {[%emt 0:01:23]} 22. Ng3 {[%emt 0:03:12] Weiß steht aktiver. Ein dynamisches Springerpaar.} Kh7 {[%emt 0:00:12]} 23. Nxf5 {[%emt 0:00:41]} (23. Qe3 $18) 23... Rxf5 {[%emt 0:01:12] Gewichteter Fehlerwert: Weiß=0.15 (sehr präzise) /Schwarz=0.24 (präzise) .  Fehler:       	Weiß=2     	Schwarz=2     Ungenau:       	Weiß=1     	---        OK:         	Weiß=4     	Schwarz=3     Bester:       	---       	Schwarz=1} 1/2-1/2

[Event "1000GM Schev-G1 March 2024"]
[Site "Santa Clara"]
[Date "2024.03.11"]
[Round "5.5"]
[White "Yan, Nathan"]
[Black "Griffith, Kyron"]
[Result "0-1"]
[ECO "B43"]
[WhiteElo "2185"]
[BlackElo "2352"]
[Annotator "TA"]
[PlyCount "112"]
[EventDate "2024.03.06"]
[EventType "schev"]
[EventCountry "USA"]
[SourceTitle "playchess.com"]
[Source "ChessBase"]
[SourceQuality "1"]
[TimeControl "5400+30"]

{[%evp 15,112,33,20,31,44,30,35,38,30,29,41,43,30,38,29,0,35,0,0,0,0,0,0,0,0,-4,0,0,0,-11,0,0,8,8,5,6,6,-14,-17,-57,-47,-56,-58,-72,0,0,0,0,-3,-90,-99,-86,-86,-98,-92,-89,-89,-89,-92,-92,-92,-92,-92,-92,-85,-1093,-949,-2365,-1579,-29951,-7620,-29963,-29964,-29965,-29968,-29966,-29967,-29969,-29970,-29969,-29971,-29971,-29973,-29975,-29976,-29976,-29977,-29977,-29978,-29978,-29979,-29979,-29976,-29976,-29977,-29978,-29978,-29977,-29976]} 1. e4 {[%emt 0:12:09]} c5 {[%emt 0:00:05]} 2. Nf3 {[%emt 0:01:11]} e6 {[%emt 0:00:06]} 3. d4 {[%emt 0:00:32]} cxd4 {[%emt 0:00:06]} 4. Nxd4 {[%emt 0:00:04]} a6 {[%emt 0:00:08]} 5. Nc3 {[%emt 0:00:29]} b5 {[%emt 0:00:31]} 6. Bd3 {[%emt 0:00:12]} Bb7 {[%emt 0:00:08]} 7. O-O {[%emt 0:00:35]} Nc6 {[%emt 0:00:07]} 8. Nxc6 {[%emt 0:00:36]} Bxc6 {[%emt 0:00:04]} 9. Re1 {[%emt 0:00:34]} Ne7 {[%emt 0:00:07]} 10. Bf1 {[%emt 0:00:32]} Ng6 {[%emt 0:00:26]} 11. Be3 {[%emt 0:00:37] White is slightly better.} f6 {[%emt 0:01:46]} 12. a4 {[%emt 0:06:18][%cal Ra4b5]} Bb4 $1 {[%emt 0:04:37]} 13. axb5 {[%emt 0:02:49]} Bxc3 {[%emt 0:02:54]} 14. bxc3 {[%emt 0:00:38]} axb5 {[%emt 0:00:06]} 15. Bc5 {[%emt 0:01:16]} Kf7 {[%emt 0:01:46]} 16. c4 {[%emt 0:03:09]} bxc4 {[%emt 0:02:35]} 17. Bxc4 {[%emt 0:01:49]} Rxa1 {[%emt 0:05:30]} 18. Qxa1 {[%emt 0:00:15]} Qc7 {[%emt 0:00:08][%cal Oc6e4]} 19. Qd4 {[%emt 0:03:06]} Qe5 {[%emt 0:02:46]} 20. Qxe5 {[%emt 0:03:58]} Nxe5 {[%emt 0:00:07]} 21. Bb3 {[%emt 0:00:19]} g5 {[%emt 0:02:40]} 22. Bd6 {[%emt 0:02:24]} Ng6 {[%emt 0:06:22]} 23. f3 {[%emt 0:01:44]} h5 {[%emt 0:04:09]} 24. Ra1 {[%emt 0:03:03]} h4 {[%emt 0:02:18]} 25. Ra7 {[%emt 0:01:02]} Ne7 {[%emt 0:02:31]} 26. Bxe7 {[%emt 0:02:08]} Kxe7 $11 {[%emt 0:00:05][%mdl 4096] Endgame. KRB-KRB} 27. Ba4 {[%emt 0:00:15]} Rc8 {[%emt 0:05:46]} 28. Bb3 {[%emt 0:03:08] [#]} g4 $1 {[%emt 0:05:19]} 29. Kf2 {[%emt 0:13:05] [#]} (29. fxg4 Bxe4) 29... gxf3 {[%emt 0:01:37]} (29... h3 $1 $17 {White must now prevent ...hxg2.} 30. fxg4 hxg2 (30... Bxe4 31. gxh3 Bxc2 32. Bxc2 $17) 31. Kxg2 Bxe4+ 32. Kf2 Bxc2) 30. gxf3 {[%emt 0:00:39]} Rg8 {[%emt 0:00:21]} 31. Ra1 {[%emt 0:00:38]} Kd6 {[%emt 0:03:24]} 32. Rg1 {[%emt 0:03:52]} (32. Bc4 $11) 32... Rxg1 $17 {[%emt 0:00:58]} 33. Kxg1 {[%emt 0:00:01] KB-KB} Ke5 {[%emt 0:00:11] And now ...Kd4 would win.} 34. Kf2 {[%emt 0:00:51]} Kd4 {[%emt 0:02:03]} 35. Ke2 {[%emt 0:01:46]} Kc3 {[%emt 0:01:39] Hoping for ...d5.} 36. Ke3 {[%emt 0:04:02]} e5 {[%emt 0:00:54]} 37. Ke2 {[%emt 0:03:07]} d6 {[%emt 0:00:16]} 38. Ke3 {[%emt 0:02:18]} Bb5 {[%emt 0:01:41]} 39. Kf2 {[%emt 0:00:56]} Kd2 {[%emt 0:03:07]} 40. Kg2 $2 {[%emt 0:07:10][%mdl 8192] This costs White the game.} (40. Be6 $17) 40... Ke3 $19 {[%emt 0:09:26] Threatens to win with ...Be2.} 41. Be6 {[%emt 0:01:56]} Be2 {[%emt 0:05:44]} 42. Bg4 {[%emt 0:00:21] [#]} d5 $1 {[%emt 0:01:37][%mdl 512]} 43. exd5 {[%emt 0:07:50] [#]} (43. Kh3 d4) 43... e4 $1 {[%emt 0:00:04] Black mates.} 44. Kh3 {[%emt 0:00:59]} exf3 {[%emt 0:00:30]} (44... Bxf3 $2 {is the wrong capture.} 45. d6 (45. Kxh4 Kf4 $11) 45... f5 46. Bxf5 $18 (46. d7 fxg4+ 47. Kxh4 Kd4 $18)) 45. Kxh4 {[%emt 0:00:39]} f2 {[%emt 0:01:59]} 46. Bh3 {[%emt 0:00:07]} f1=Q {[%emt 0:00:35]} 47. Bxf1 {[%emt 0:00:07]} Bxf1 {[%emt 0:00:05] KB-K3P} 48. Kg4 {[%emt 0:00:43]} Ke4 {[%emt 0:00:11]} 49. h4 {[%emt 0:01:21]} Be2+ {[%emt 0:00:11]} ({Worse is} 49... Kxd5 50. Kf5 $11) 50. Kg3 {[%emt 0:00:17]} Kxd5 {[%emt 0:00:28] KB-KPP} 51. Kf4 {[%emt 0:01:06]} Ke6 {[%emt 0:00:05]} 52. Ke4 {[%emt 0:01:10]} Bh5 {[%emt 0:00:24]} 53. Kf4 {[%emt 0:00:52]} Be8 {[%emt 0:00:48]} 54. c4 {[%emt 0:01:09]} Bd7 {[%emt 0:00:49]} 55. h5 {[%emt 0:01:10]} Bc8 {[%emt 0:00:10]} 56. Ke4 {[%emt 0:00:11]} f5+ {[%emt 0:26:00] Weighted Error Value: White=0.50/Black=0.03 (flawless) .  Loses game:     	White=1     	---        Mistake:       	White=1     	Black=1      Inaccurate:     	White=4     	Black=1      OK:         	White=11    	Black=15     Best:        	White=3     	Black=3      Strong:       	---       	Black=1} 0-1